bitfinex/quotes_ETHUSD_20240604
["timestamp","ask_amount","ask_price","bid_price","bid_amount"]
[1717470909220,0.14330291,3784.0,3783.8,0.55]
[1717470909422,2.87468927,3784.3,3783.8,0.55]
[1717470909642,0.14323567,3783.9,3783.8,0.55]
[1717470909800,2.87468927,3784.3,3783.8,0.55]
[1717470910001,0.14323567,3783.9,3783.8,0.55]
[1717470910336,2.87468927,3784.3,3783.8,0.55]
[1717470910843,0.4312046,3784.2,3783.8,0.55]
[1717470911811,0.14323567,3784.2,3783.8,0.55]
[1717470912141,2.3613,3784.3,3783.8,0.55]
[1717470912639,2.3613,3784.3,3783.9,0.56]
[1717470912943,0.005,3784.5,3784.0,0.55]
[1717470913298,0.13846112,3784.4,3784.0,0.55]
[1717470913933,0.13846112,3784.4,3784.0,3.1927]
[1717470915020,0.13846112,3784.4,3784.1,0.37527]
[1717470915247,0.13846112,3784.4,3784.3,0.56]
[1717470915418,0.005,3784.5,3784.4,2.64242]
[1717470915812,0.005,3784.5,3784.4,4.11040603]
[1717470919056,0.01312353,3784.6,3784.4,4.11040603]
[1717470919258,0.01312353,3784.6,3784.5,2.687806]
[1717470920538,0.01312353,3784.6,3784.5,37.687806]
[1717470920848,0.01312353,3784.6,3784.5,39.06467621]
[1717470921251,0.01312353,3784.6,3784.5,4.06467632]
[1717470921446,0.01312353,3784.6,3784.5,2.687806]
[1717470921854,0.01312353,3784.6,3784.5,7.61549098]
[1717470922163,0.01312353,3784.6,3784.5,7.06467632]
[1717470922935,0.01312353,3784.6,3784.5,9.84567632]
[1717470923350,0.00132191,3784.6,3784.5,9.84567632]
[1717470924361,0.00132191,3784.6,3784.5,9.28567632]
[1717470924659,0.00132191,3784.6,3784.5,9.84567632]
[1717470924855,0.00132191,3784.6,3784.5,10.39649098]
[1717470925567,0.00132191,3784.6,3784.5,12.74609098]
[1717470926568,0.00132191,3784.6,3784.5,13.12681148]
[1717470926768,0.00132191,3784.6,3784.5,12.74609098]
[1717470926975,0.00132191,3784.6,3784.5,12.19527632]
[1717470927358,0.00132191,3784.6,3784.5,12.74453652]
[1717470930138,0.00132191,3784.6,3784.5,14.33153652]
[1717470930837,0.00132191,3784.6,3784.5,49.33153652]
[1717470931941,0.00132191,3784.6,3784.5,48.78227632]
[1717470932155,0.00132191,3784.6,3784.5,49.16299682]
[1717470932373,0.00132191,3784.6,3784.5,49.71225702]
[1717470933886,0.00132191,3784.6,3784.5,49.71188205]
[1717470934050,0.00132191,3784.6,3784.5,11.98156155]
[1717470934438,0.00132191,3784.6,3784.5,10.05561252]
[1717470934977,0.00132191,3784.6,3784.5,11.43242779]
[1717470937647,0.00132191,3784.6,3784.5,12.48945179]
[1717470937849,0.00132191,3784.6,3784.5,11.92945179]
[1717470938167,0.00132191,3784.6,3784.5,12.48945179]
[1717470938493,0.00132191,3784.6,3784.5,11.11263652]
[1717470939343,0.00132191,3784.6,3784.5,11.92946032]
[1717470939649,0.00132191,3784.6,3784.5,12.48946032]
[1717470940906,0.00132191,3784.6,3784.5,6.19475081]
[1717470941049,0.00132191,3784.6,3784.4,2.64242]
[1717470941447,2.2965,3784.5,3784.4,2.64242]
[1717470942060,2.2965,3784.5,3784.1,2.64263]
[1717470942661,0.13907998,3784.4,3784.1,2.64263]
[1717470943495,2.78150998,3784.4,3783.7,7.32]
[1717470943696,2.61488319,3784.3,3783.7,7.32]
[1717470944390,2.4,3783.9,3783.7,7.32]
[1717470944901,0.13870711,3783.8,3783.7,7.32]
[1717470947897,0.13870711,3783.8,3782.9,9.96344]
[1717470948061,2.4,3783.9,3783.0,3.55]
[1717470949273,2.904272,3783.9,3783.0,3.55]
[1717470952609,2.64285,3783.8,3783.0,3.55]
[1717470963247,2.64285,3783.8,3783.0,0.55]
[1717470964187,2.64305,3783.5,3783.0,0.55]
[1717470964397,2.2582,3783.4,3783.0,0.55]
[1717470964901,2.748325,3783.4,3783.0,0.55]
[1717470966346,2.6432,3783.3,3783.0,0.55]
[1717470968340,0.13802458,3783.2,3783.0,0.55]
[1717470968539,2.6432,3783.3,3783.0,0.55]
[1717470968943,0.13793328,3783.2,3783.0,0.55]
[1717470969137,2.6432,3783.3,3783.0,0.55]
[1717470969345,0.13793328,3783.1,3783.0,0.55]
[1717470969535,3.18944,3783.3,3783.0,0.55]
[1717470969722,0.13789358,3783.1,3783.0,0.55]
[1717470969922,3.18944,3783.3,3783.0,0.55]
[1717470970118,2.64362,3782.7,3782.4,7.32]
[1717470970337,2.64362,3782.7,3781.8,19.5]
[1717470970665,2.64362,3782.7,3781.8,20.061]
[1717470970829,2.64362,3782.7,3782.0,0.561]
[1717470971220,2.64362,3782.7,3781.8,21.8763138]
[1717470971419,2.64362,3782.7,3782.0,0.561]
[1717470971617,2.64362,3782.7,3782.1,0.55]
[1717470972138,2.64362,3782.7,3782.0,0.561]
[1717470972458,2.64362,3782.7,3782.1,0.55]
[1717470973274,2.64362,3782.7,3782.0,0.55]
[1717470975351,2.64362,3782.7,3781.9,1.111]
[1717470976022,2.64383,3782.4,3781.9,0.55]
[1717470976218,2.4596,3782.3,3781.9,0.55]
[1717470976469,2.59698939,3782.3,3781.9,0.55]
[1717470977861,2.64396,3782.2,3781.6,0.561]
[1717470978252,0.13726628,3782.1,3781.6,0.561]
[1717470978641,2.64396,3782.2,3781.6,0.561]
[1717470978857,2.64396,3782.2,3781.3,3.0]
[1717470979178,2.64396,3782.2,3781.4,1.68978029]
[1717470979333,2.64396,3782.2,3781.6,0.561]
[1717470979528,2.64396,3782.2,3781.7,0.55]
[1717470979971,2.64396,3782.2,3781.6,0.55]
[1717470980130,2.64396,3782.2,3781.5,0.561]
[1717470980324,2.64396,3782.2,3781.6,0.55]
[1717470980853,2.64396,3782.2,3781.4,1.111]
[1717470981028,2.64396,3782.2,3781.4,0.55]
[1717470981228,2.64396,3782.2,3781.5,0.561]
[1717470981452,2.64396,3782.2,3781.6,0.55]
[1717470984165,2.64396,3782.2,3781.5,1.111]
[1717470984551,2.64396,3782.2,3781.5,0.55]
[1717470987411,2.64396,3782.2,3781.6,0.561]
[1717470987612,2.64396,3782.2,3781.7,0.55]
[1717470987801,2.64396,3782.2,3781.5,1.111]
[1717470990376,2.64396,3782.2,3781.5,0.55]
[1717470992188,0.561,3782.1,3781.5,0.55]
[1717470993101,0.561,3782.1,3781.3,0.55]
[1717470994084,2.64396,3782.2,3781.3,0.55]
[1717470996260,2.441,3782.1,3781.3,0.55]
[1717470997158,2.441,3782.1,3781.3,1.657572]
[1717470998972,2.64415,3782.0,3781.3,0.55]
[1717470999179,2.4455,3781.9,3781.3,0.55]
[1717470999979,2.64427,3781.8,3781.3,0.55]
[1717471000290,2.64427,3781.8,3781.0,1.111]
[1717471002045,1.11094254,3783.0,3780.9,10.32]
[1717471002046,2.3893,3781.7,3780.9,7.32]
[1717471002252,2.3893,3781.2,3780.9,7.32]
[1717471002509,2.3893,3781.2,3780.4,2.64517]
[1717471003362,2.3893,3781.2,3780.5,0.55]
[1717471005108,2.9503,3781.2,3780.5,0.55]
[1717471005813,2.9503,3781.2,3780.5,1.657617]
[1717471005975,2.4345,3781.5,3780.7,2.64498]
[1717471006174,0.13633391,3781.1,3780.9,2.64486]
[1717471006392,2.4345,3781.8,3781.1,2.64468]
[1717471006591,2.4345,3781.8,3781.2,0.561]
[1717471006771,0.13625444,3781.7,3781.3,0.55]
[1717471006967,2.4345,3781.8,3781.3,0.9839664]
[1717471007162,0.13621868,3781.6,3781.3,0.9839664]
[1717471007375,2.4345,3781.8,3781.3,0.9839664]
[1717471007588,0.13621868,3781.5,3781.3,0.55]
[1717471007793,2.4345,3781.8,3781.2,0.55]
[1717471008022,0.13621868,3781.4,3781.2,0.55]
[1717471008221,2.4345,3781.8,3781.2,0.55]
[1717471008819,0.13621868,3781.7,3781.2,0.55]
[1717471009117,0.13621868,3781.7,3780.7,2.64497]
[1717471009278,0.13621868,3781.7,3780.8,3.80854981]
[1717471009279,0.561,3781.7,3780.8,3.80854981]
[1717471009478,0.561,3781.7,3780.9,0.55]
[1717471009678,0.13621868,3781.6,3780.9,0.55]
[1717471010320,0.13621868,3781.6,3780.6,0.27473207]
[1717471010522,2.4713,3780.9,3780.7,0.91887401]
[1717471010716,2.4713,3780.9,3780.3,4.02355102]
[1717471011011,2.4713,3781.2,3780.5,2.64513]
[1717471011350,2.4713,3781.5,3780.7,0.561]
[1717471011548,0.13629021,3781.1,3780.8,0.320613]
[1717471011730,2.4713,3781.5,3780.9,0.561]
[1717471012040,2.4713,3781.5,3781.0,0.55]
[1717471012463,2.4713,3781.5,3780.9,0.55]
[1717471012821,2.4713,3781.5,3780.6,0.55]
[1717471013715,2.2568,3781.3,3780.6,0.55]
[1717471015457,2.64467,3781.2,3780.2,7.32]
[1717471015661,2.64467,3781.2,3780.3,3.55]
[1717471015952,2.2568,3781.3,3780.4,3.33768607]
[1717471016149,2.2568,3781.3,3780.5,0.55]
[1717471016308,5.03334,3781.6,3780.6,0.65187]
[1717471016647,5.03334,3781.6,3780.7,2.645]
[1717471016847,5.03334,3781.6,3780.8,0.55]
[1717471020063,2.4804,3781.9,3780.4,2.64522]
[1717471020340,1.347,3782.0,3780.4,2.64522]
[1717471020341,2.4804,3781.7,3780.4,2.64522]
[1717471020915,0.13629022,3781.6,3780.4,2.64522]
[1717471021115,2.4804,3781.7,3780.4,2.64522]
[1717471021359,0.13629022,3781.5,3780.5,0.55]
[1717471021523,2.2948,3781.4,3780.5,0.55]
[1717471021725,2.64473,3781.2,3780.5,0.55]
[1717471021938,2.64484,3781.0,3780.2,7.32]
[1717471022255,2.64484,3781.0,3780.3,0.55]
[1717471022554,0.13615512,3780.9,3780.3,0.55]
[1717471023454,0.64373463,3780.9,3780.3,0.55]
[1717471023815,2.64495,3780.8,3780.3,0.55]
[1717471024426,0.13615512,3780.7,3780.3,0.55]
[1717471024917,4.93953,3781.1,3780.3,0.55]
[1717471025144,0.13615512,3780.6,3780.3,0.55]
[1717471025385,4.93953,3781.1,3780.3,0.55]
[1717471025572,0.13604779,3780.5,3780.3,0.55]
[1717471025908,5.433483,3781.1,3780.3,0.55]
[1717471026116,0.13604779,3780.4,3780.3,0.55]
[1717471026440,5.433483,3781.1,3780.2,3.55]
[1717471026641,0.13604779,3780.4,3780.2,3.55]
[1717471026878,5.433483,3781.1,3780.2,3.55]
[1717471029247,0.5433483,3781.0,3780.2,3.55]
[1717471031273,2.64487,3780.9,3780.2,3.55]
[1717471034479,2.64487,3780.9,3780.2,0.55]
[1717471034678,2.3872,3780.5,3779.7,4.02437923]
[1717471035005,2.3872,3780.5,3779.8,3.55]
[1717471035567,5.08527,3781.0,3779.9,4.95796]
[1717471035765,0.1358292,3780.4,3780.1,2.64541]
[1717471036117,4.30474979,3782.3,3780.1,2.64541]
[1717471036118,2.4404,3782.0,3781.1,2.64471]
[1717471036283,2.4404,3782.0,3781.2,1.111]
[1717471036464,2.4404,3782.0,3781.2,0.55]
[1717471036736,3.004946,3782.0,3781.2,0.55]
[1717471037423,3.565946,3782.0,3781.2,0.55]
[1717471037916,3.565946,3782.0,3781.1,2.64471]
[1717471037917,2.64421,3781.9,3780.8,3.0]
[1717471038071,2.64421,3781.9,3780.9,0.55]
[1717471038265,0.5649156,3781.8,3780.9,3.55]
[1717471038707,0.5649156,3781.8,3781.0,3.0]
[1717471038871,0.5649156,3781.8,3781.1,0.55]
[1717471039270,0.5649156,3781.8,3780.9,3.19486]
[1717471039473,0.5649156,3781.8,3781.0,3.0]
[1717471039688,0.5649156,3781.8,3781.1,0.55]
[1717471040067,0.56495256,3781.7,3781.1,0.55]
[1717471043384,2.64421,3781.9,3781.1,0.55]
[1717471043718,0.13211477,3781.8,3781.1,0.55]
[1717471044037,2.63099,3781.9,3781.1,0.55]
[1717471044330,0.13193595,3781.8,3781.2,2.64465]
[1717471044633,0.13193595,3781.8,3781.3,0.55]
[1717471048724,0.65226854,3781.8,3781.3,0.55]
[1717471048926,0.65226854,3781.8,3781.0,0.55]
[1717471049241,0.13193595,3781.8,3780.9,0.55]
[1717471051773,2.64431,3781.7,3780.9,0.55]
[1717471051938,2.77659565,3781.7,3780.9,0.55]
[1717471057043,2.64451,3781.5,3780.9,0.55]
[1717471057268,3.18662057,3781.5,3780.9,0.55]
[1717471057686,0.13228565,3781.4,3780.9,0.55]
[1717471057974,2.64462,3781.3,3780.8,7.32]
[1717471058174,2.41,3781.2,3780.8,7.32]
[1717471058366,2.54207902,3781.2,3780.4,2.64517]
[1717471058843,2.64474,3781.1,3780.4,2.64517]
[1717471059382,2.64474,3781.1,3780.5,0.55]
[1717471060090,2.64474,3781.1,3780.5,1.111]
[1717471060382,2.64474,3781.1,3780.5,2.59883524]
[1717471061483,2.64474,3781.1,3780.5,2.03783524]
[1717471061687,2.64474,3781.1,3780.5,0.55]
[1717471063465,2.3439,3781.0,3780.5,0.55]
[1717471063679,2.3439,3781.0,3780.4,0.55]
[1717471064475,2.3439,3781.0,3780.3,0.55]
[1717471067106,2.64491,3780.9,3780.3,0.55]
[1717471067629,0.13183262,3780.8,3780.3,0.55]
[1717471067833,2.64491,3780.9,3780.3,0.55]
[1717471067966,0.13183262,3780.7,3780.3,0.55]
[1717471068170,2.64491,3780.9,3780.2,0.55]
[1717471068411,0.13180877,3780.6,3780.2,1.11843524]
[1717471068599,2.64491,3780.9,3780.3,0.561]
[1717471068805,2.64491,3780.9,3780.4,0.55]
[1717471072302,2.63659202,3780.9,3780.4,0.55]
[1717471075672,2.63659202,3780.9,3780.3,0.55]
[1717471078178,2.3439,3781.0,3780.3,0.55]
[1717471078377,0.131769,3780.8,3780.3,0.55]
[1717471078677,2.3439,3781.0,3780.3,0.55]
[1717471079117,0.131769,3780.9,3780.3,0.55]
[1717471079409,2.3439,3781.0,3780.3,0.55]
[1717471079608,0.131769,3780.8,3780.3,0.55]
[1717471079787,2.3439,3781.0,3780.3,0.55]
[1717471080112,0.131769,3780.7,3780.3,0.55]
[1717471080292,2.3439,3781.0,3780.3,0.55]
[1717471080701,0.131769,3780.9,3780.3,0.55]
[1717471081125,2.64488,3780.9,3780.3,0.55]
[1717471081328,2.64488,3780.9,3780.0,0.5492602]
[1717471081329,1.059878,3780.9,3780.0,0.5492602]
[1717471081479,2.3618,3780.4,3780.0,0.91907056]
[1717471081883,2.3618,3780.4,3779.8,7.32]
[1717471082078,2.3618,3780.4,3779.5,3.7560402]
[1717471082079,2.3618,3780.4,3779.5,3.1950402]
[1717471082310,2.3618,3780.4,3779.6,0.9192184]
[1717471082722,2.3618,3780.4,3779.7,0.55]
[1717471083219,2.3618,3780.4,3779.6,0.55]
[1717471086733,2.3618,3780.4,3779.6,2.07764211]
[1717471087432,2.3618,3780.4,3779.7,0.561]
[1717471087610,2.64508,3780.6,3779.8,0.55]
[1717471088283,2.2553,3780.7,3779.9,0.561]
[1717471088685,0.13156628,3780.6,3780.0,0.55]
[1717471088926,2.2553,3780.7,3780.0,0.55]
[1717471089699,2.8163,3780.7,3780.0,0.55]
[1717471089907,3.362416,3780.7,3779.9,0.55]
[1717471090102,0.13142315,3780.6,3779.9,0.55]
[1717471093909,0.561,3780.5,3779.9,0.55]
[1717471094405,0.13149872,3780.4,3779.9,0.55]
[1717471095490,0.561,3780.0,3779.5,1.3787601]
[1717471095816,0.546116,3780.7,3778.9,0.5492602]
[1717471095817,2.64585,3779.5,3778.9,0.5492602]
[1717471096000,2.64585,3779.5,3778.4,1.37920402]
[1717471096001,0.561,3779.0,3778.4,1.37920402]
[1717471096202,0.561,3779.0,3778.3,2.5]
[1717471096739,0.561,3779.2,3778.3,2.5]
[1717471098205,2.64574,3779.7,3778.9,0.561]
[1717471098406,0.13135955,3779.1,3779.0,0.55]
[1717471098719,2.64574,3779.7,3779.0,0.55]
[1717471098905,2.64574,3779.7,3779.4,0.561]
[1717471099106,2.64547,3780.1,3779.4,0.561]
[1717471099449,3.202987,3780.1,3779.2,0.561]
[1717471099949,3.202987,3780.1,3779.0,0.55]
[1717471100126,3.202987,3780.1,3778.9,2.64624]
[1717471100374,2.64558,3779.9,3779.0,0.55]
[1717471102027,2.64558,3779.9,3778.8,0.55]
[1717471102276,2.64573,3779.7,3778.8,0.55]
[1717471102829,2.64617,3779.1,3778.3,9.82]
[1717471104770,2.64617,3779.1,3778.4,0.55]
[1717471106539,2.4386,3779.0,3778.4,0.55]
[1717471109186,2.64617,3779.1,3778.4,0.55]
[1717471109396,2.64617,3779.1,3778.5,1.301664]
[1717471109689,2.4206,3779.4,3778.6,0.55]
[1717471109847,2.64589,3779.5,3778.6,0.55]
[1717471110264,2.64589,3779.5,3778.6,3.19645]
[1717471116472,2.64601,3779.3,3778.3,9.82]
[1717471116648,2.64601,3779.3,3778.4,3.55]
[1717471117581,2.64601,3779.3,3778.4,0.55]
[1717471120082,2.64601,3779.3,3778.5,0.562]
[1717471120592,2.64601,3779.3,3778.4,1.112]
[1717471122193,2.64601,3779.3,3778.4,0.55]
[1717471122371,2.4548,3779.0,3778.3,9.82]
[1717471122683,2.4548,3779.0,3778.3,10.382]
[1717471123113,0.13041298,3778.9,3778.3,10.382]
[1717471123340,0.13041298,3778.9,3778.3,9.82]
[1717471123497,0.13041298,3778.9,3778.3,3.062]
[1717471124486,0.71030238,3778.9,3778.3,2.5]
[1717471124691,0.5798894,3778.9,3778.3,2.5]
[1717471127339,2.4548,3779.0,3778.3,2.5]
[1717471133732,2.4548,3779.0,3778.3,3.062]
[1717471134900,2.4548,3779.0,3778.3,2.5]
[1717471135705,2.4548,3779.0,3778.1,3.20882]
[1717471135908,2.4548,3779.0,3778.2,0.55]
[1717471136142,2.4548,3779.0,3778.2,1.112]
[1717471138716,2.4548,3779.0,3778.3,2.64666]
[1717471139248,2.4548,3779.0,3778.4,0.562]
[1717471141152,2.4548,3779.0,3778.5,0.91953296]
[1717471141517,0.13018622,3778.9,3778.5,0.91953296]
[1717471141719,2.4548,3779.0,3778.5,0.91953296]
[1717471142163,2.4548,3779.0,3778.4,0.562]
[1717471142460,0.13022599,3778.9,3778.6,0.562]
[1717471142663,2.3576,3779.4,3778.6,3.20848]
[1717471142876,0.13022599,3779.3,3778.7,0.55]
[1717471143267,0.13022599,3779.3,3778.8,3.20833]
[1717471143457,0.13022599,3779.3,3778.9,0.91942951]
[1717471143771,2.452,3779.7,3779.0,0.562]
[1717471144228,0.13024589,3779.6,3779.0,0.562]
[1717471144428,0.13024589,3779.6,3778.8,3.20833]
[1717471144651,0.13024589,3779.6,3778.9,1.46942018]
[1717471144855,0.13024589,3779.6,3778.9,0.55]
[1717471145429,0.13024589,3779.6,3779.0,0.91942346]
[1717471145737,0.13024589,3779.6,3779.1,2.64609]
[1717471146237,2.452,3779.7,3779.1,2.64609]
[1717471146439,3.017964,3779.7,3779.1,2.64609]
[1717471146634,0.13034932,3779.6,3779.1,2.64609]
[1717471151449,2.452,3779.7,3779.1,2.64609]
[1717471151647,0.13034932,3779.5,3779.1,2.64609]
[1717471151872,2.452,3779.7,3779.1,2.64609]
[1717471152073,0.13034932,3779.4,3779.1,2.64609]
[1717471152395,2.452,3779.7,3779.1,2.64609]
[1717471152751,0.13034932,3779.6,3779.1,2.64609]
[1717471153115,2.452,3779.7,3779.1,2.64609]
[1717471153275,0.13034932,3779.5,3779.1,2.64609]
[1717471153472,2.452,3779.7,3779.1,2.64609]
[1717471153708,0.13034932,3779.4,3779.1,2.64609]
[1717471153898,2.452,3779.7,3779.1,2.64609]
[1717471154097,0.13034932,3779.3,3779.1,2.64609]
[1717471154294,2.452,3779.7,3779.1,2.64609]
[1717471154501,0.13034932,3779.2,3779.1,2.64609]
[1717471154814,2.452,3779.7,3779.1,2.64609]
[1717471155122,0.13034932,3779.6,3779.1,2.64609]
[1717471156415,0.70934825,3779.6,3779.1,2.64609]
[1717471159410,0.13034932,3779.6,3779.1,2.64609]
[1717471159786,2.452,3779.7,3779.1,2.64609]
[1717471160212,0.13034932,3779.6,3779.1,2.64609]
[1717471160515,2.452,3779.7,3779.1,2.64609]
[1717471160717,0.13031352,3779.5,3779.1,2.64609]
[1717471160922,2.452,3779.7,3779.1,2.64609]
[1717471161217,0.13031352,3779.4,3779.1,2.64609]
[1717471161519,0.13031352,3779.3,3779.1,2.64609]
[1717471161719,2.452,3779.7,3779.1,2.64609]
[1717471162016,0.13031352,3779.2,3779.1,2.64609]
[1717471162322,2.452,3779.7,3779.1,2.64609]
[1717471162508,0.13031352,3779.2,3779.1,2.64609]
[1717471162680,2.452,3779.7,3779.1,2.64609]
[1717471162885,0.13031352,3779.2,3779.1,2.64609]
[1717471163083,2.452,3779.7,3779.1,2.64609]
[1717471163288,0.13031352,3779.2,3779.1,2.64609]
[1717471163515,2.452,3779.7,3779.1,2.64609]
[1717471163711,0.13031352,3779.2,3779.1,2.64609]
[1717471163923,2.452,3779.7,3779.1,2.64609]
[1717471164122,0.13031352,3779.2,3779.1,2.64609]
[1717471164319,2.452,3779.7,3779.1,2.64609]
[1717471164545,0.13031352,3779.2,3779.1,2.64609]
[1717471164828,2.452,3779.7,3779.1,2.64609]
[1717471165191,0.13031352,3779.6,3779.1,2.64609]
[1717471170448,2.3493,3780.1,3779.2,1.171249]
[1717471170654,2.3493,3780.1,3779.2,0.55]
[1717471170851,0.69233342,3780.0,3779.4,2.6459]
[1717471171051,0.69233342,3780.0,3779.0,2.64613]
[1717471171360,3.33789342,3780.0,3779.0,2.64613]
[1717471171517,0.56871934,3779.9,3779.0,2.64613]
[1717471171855,2.3953,3779.8,3779.0,2.64613]
[1717471172059,2.52563342,3779.8,3779.0,2.64613]
[1717471172957,3.08763342,3779.8,3779.0,2.64613]
[1717471176237,2.52563342,3779.8,3779.0,2.64613]
[1717471177875,2.52563342,3779.8,3779.1,0.91937067]
[1717471178991,2.52563342,3779.8,3779.0,2.64613]
[1717471179276,2.52563342,3779.8,3779.1,0.91938408]
[1717471181457,3.1558247,3779.8,3779.1,0.91938408]
[1717471183120,0.562,3779.7,3779.1,0.91938408]
[1717471183287,2.3026,3779.2,3778.8,1.379099]
[1717471183490,2.3026,3779.2,3778.7,2.6464]
[1717471183935,0.13045276,3779.1,3778.7,2.6464]
[1717471184102,2.3026,3779.2,3778.7,2.6464]
[1717471184404,0.13045276,3779.1,3778.4,0.5492602]
[1717471184721,0.13045276,3779.1,3778.5,0.55]
[1717471184889,0.13045276,3779.1,3778.6,0.91952406]
[1717471185223,0.13045276,3779.1,3778.5,0.55]
[1717471185428,0.13045276,3779.1,3778.6,0.91953293]
[1717471185811,0.13045276,3779.1,3778.3,5.13723398]
[1717471185987,0.13045276,3779.1,3778.4,1.46954127]
[1717471186285,0.13045276,3779.1,3778.5,0.91954127]
[1717471186711,0.13045276,3779.1,3778.3,4.58797378]
[1717471186929,0.13045276,3779.1,3778.4,0.91955929]
[1717471186930,2.3026,3778.8,3778.4,0.91955929]
[1717471187235,2.77663403,3778.7,3778.0,0.5492602]
[1717471187389,2.77663403,3778.7,3778.0,1.46886098]
[1717471187798,2.64642,3778.7,3778.0,1.46886098]
[1717471188227,2.64642,3778.7,3778.1,0.91960078]
[1717471188434,2.64642,3778.7,3777.9,2.64694]
[1717471188588,2.64642,3778.7,3778.0,1.4696456]
[1717471188788,2.64642,3778.7,3778.1,0.9196456]
[1717471189226,2.64642,3778.7,3778.0,0.55]
[1717471189914,2.64642,3778.7,3778.1,0.91963181]
[1717471190228,2.64642,3778.7,3778.0,0.55]
[1717471193237,3.20842,3778.7,3778.0,0.55]
[1717471193639,0.12972457,3778.6,3778.0,0.55]
[1717471194361,2.3709,3778.5,3777.6,3.562]
[1717471194638,2.3709,3778.5,3777.6,0.562]
[1717471194935,2.9329,3778.5,3777.6,0.562]
[1717471195138,0.12972457,3778.4,3777.6,0.562]
[1717471195508,0.12972457,3778.4,3777.5,9.9672]
[1717471195509,0.12972457,3778.4,3777.9,2.2772]
[1717471195716,2.64642,3778.7,3777.9,2.2772]
[1717471195916,0.12972457,3778.6,3777.9,2.2772]
[1717471196326,0.12972457,3778.6,3777.8,2.64704]
[1717471196533,0.12972457,3778.6,3777.9,0.55]
[1717471197209,0.12972457,3778.6,3777.9,1.253296]
[1717471199699,2.64642,3778.7,3777.9,1.253296]
[1717471201661,2.64642,3778.7,3777.9,0.55]
[1717471202300,2.64642,3778.7,3777.9,1.112]
[1717471202708,0.12966886,3778.6,3777.9,1.112]
[1717471203802,2.4378,3778.5,3777.8,2.64704]
[1717471204301,0.12966488,3778.4,3777.8,2.64704]
[1717471205460,0.12966488,3778.4,3777.5,7.32]
[1717471205663,2.9998,3778.5,3777.6,0.55]
[1717471208171,2.9998,3778.5,3777.6,1.112]
[1717471208374,2.9998,3778.5,3777.6,0.55]
[1717471208585,2.9998,3778.5,3777.6,1.112]
[1717471211172,2.9998,3778.5,3777.6,0.55]
[1717471211371,2.64662,3778.4,3777.6,0.55]
[1717471211708,2.3923,3778.3,3777.6,0.55]
[1717471214105,2.3923,3778.3,3777.7,2.64709]
[1717471214286,2.442,3779.1,3778.2,3.20869]
[1717471214489,1.3846381,3779.6,3778.2,3.20869]
[1717471214490,3.75430034,3779.6,3778.5,0.562]
[1717471214720,2.375,3779.5,3778.6,0.55]
[1717471214889,2.50437028,3779.5,3778.6,0.55]
[1717471215404,0.562,3779.4,3778.6,0.55]
[1717471215986,0.12949368,3779.3,3778.6,0.55]
[1717471218531,2.77551368,3779.3,3778.5,2.64653]
[1717471218734,3.45759308,3779.3,3778.3,7.32]
[1717471218904,5.03293,3779.1,3778.3,7.32]
[1717471219227,0.562,3779.0,3778.3,7.32]
[1717471219435,0.12949368,3779.0,3778.3,7.32]
[1717471220342,0.12949368,3779.0,3778.1,3.20878]
[1717471220503,0.12949368,3779.0,3778.2,1.602878]
[1717471220723,2.64629,3778.9,3778.2,1.602878]
[1717471220918,2.77582748,3778.9,3778.2,1.602878]
[1717471224041,0.12953748,3778.9,3778.3,2.64667]
[1717471224365,2.9488,3779.1,3778.3,3.20867]
[1717471224366,2.3868,3779.1,3778.3,3.20867]
[1717471224520,0.12960115,3779.0,3778.3,3.20867]
[1717471226625,0.12960115,3779.0,3778.3,2.64667]
[1717471229145,1.23811149,3779.0,3778.3,2.64667]
[1717471231369,2.12807639,3779.0,3778.3,2.64667]
[1717471231879,2.16120044,3779.0,3778.3,2.64667]
[1717471233281,1.10851034,3778.9,3778.3,2.64667]
[1717471233645,0.16273317,3778.8,3778.3,2.64667]
[1717471244820,0.16273317,3778.8,3778.0,1.94158175]
[1717471245112,0.16273317,3778.8,3778.1,0.9197231]
[1717471245318,0.562,3778.5,3777.8,0.55309279]
[1717471245524,2.64663,3778.4,3777.9,0.9197431]
[1717471245679,0.16291628,3778.4,3777.7,3.20019279]
[1717471245875,0.16291628,3778.4,3777.8,0.91974567]
[1717471246104,3.60321034,3778.7,3777.8,0.91974567]
[1717471246320,0.16272521,3778.3,3777.8,0.91974567]
[1717471246620,0.16272521,3778.2,3777.8,0.91974567]
[1717471246781,2.64652,3778.6,3777.9,0.55]
[1717471246982,0.16272521,3778.5,3777.9,0.55]
[1717471247210,0.16272521,3778.5,3777.8,0.55]
[1717471247395,0.16272521,3778.5,3777.9,0.91974549]
[1717471248584,0.16272521,3778.5,3777.8,0.55]
[1717471248784,0.16272521,3778.5,3777.9,0.91974657]
[1717471249520,2.64665,3778.4,3777.7,2.6471]
[1717471249724,2.64665,3778.4,3777.8,0.9197531]
[1717471250021,0.16272521,3778.3,3777.8,0.9197531]
[1717471250810,0.16272521,3778.3,3777.9,0.55]
[1717471251302,0.16272521,3778.3,3777.8,0.55]
[1717471251493,0.16272521,3778.3,3777.9,0.91974936]
[1717471252437,0.16272521,3778.3,3777.8,0.55]
[1717471264277,0.16272521,3778.3,3777.9,0.91974921]
[1717471264757,0.16272521,3778.3,3778.0,2.3085]
[1717471265264,0.16262968,3778.2,3778.0,2.3085]